Organisation Name,Purchase_Order_Number,Order_Date,Total_Value,Supplier_Name,Account_Name,Service
Rochdale Borough Council,d1055172,04/01/2016,"6,621.51",ELECTRICITY NORTH WEST LTD,MAINTENANCE,PROPERTY AND HIGHWAYS
Rochdale Borough Council,d1055175,04/01/2016,"10,000.00",BELFOR UK LTD,PROPERTY - WORKS ELEMENT,NEIGHBOURHOODS AND ENVIRONMENT
Rochdale Borough Council,e1019263,04/01/2016,"5,446.40",ERNST & YOUNG LLP,CONSULTANTS FEES,EARLY HELP AND SCHOOLS
Rochdale Borough Council,e1019268,04/01/2016,"6,842.81",BELMONT SCHOOL LIMITED,OTHER LA`S - SEN PROVISION,EARLY HELP AND SCHOOLS
Rochdale Borough Council,e1019273,04/01/2016,"5,625.00",CATHERINE HOW SCHOOL EFFECTIVENESS PARTNER SERVICE,CURRICULUM DEVELOPMENT,EARLY HELP AND SCHOOLS
Rochdale Borough Council,d1055205,05/01/2016,"10,500.00",NEW IMAGE PUBLIC RELATIONS LIMITED,CONTRACTED SERVICES,NEIGHBOURHOODS AND ENVIRONMENT
Rochdale Borough Council,e1019283,05/01/2016,"5,309.09",INSPIREDSPACES ROCHDALE LTD,PURCHASE OF ICT HARDWARE,EARLY HELP AND SCHOOLS
Rochdale Borough Council,e1019286,05/01/2016,"9,648.50",INSPIREDSPACES ROCHDALE LTD,PURCHASE OF ICT HARDWARE,EARLY HELP AND SCHOOLS
Rochdale Borough Council,e1019290,05/01/2016,"323,537.43",INSPIREDSPACES ROCHDALE PROJECT CO1 LTD,PFI SCHEMES RPIX,EARLY HELP AND SCHOOLS
Rochdale Borough Council,ph101089,05/01/2016,"138,408.00",BIG LIFE CENTRES,PH BIG LIFE CONTRACT,PUBLIC HEALTH
Rochdale Borough Council,q1006063,05/01/2016,"16,265.60",ESTIO TECHNOLOGY RECRUITMENT,AGENCY STAFF,NEIGHBOURHOODS AND ENVIRONMENT
Rochdale Borough Council,q1006066,05/01/2016,"12,897.00",OXFORD COMPUTER CONSULTANTS LIMITED,SOFTWARE,FINANCE SERVICES
Rochdale Borough Council,d1055243,06/01/2016,"14,238.00",SSI SCHAEFER LIMITED,PURCHASE OF OTHER EQUIPMENT,NEIGHBOURHOODS AND ENVIRONMENT
Rochdale Borough Council,e1019297,06/01/2016,"5,035.71",INSPIREDSPACES ROCHDALE PROJECTCO2 LTD,IMPROVEMENTS-MODERNISATION,EARLY HELP AND SCHOOLS
Rochdale Borough Council,e1019305,06/01/2016,"5,550.22",INSPIREDSPACES ROCHDALE PROJECTCO2 LTD,IMPROVEMENTS-MODERNISATION,EARLY HELP AND SCHOOLS
Rochdale Borough Council,e1019306,06/01/2016,"6,000.00",ROCHDALE BOROUGHWIDE HOUSING,EQUIPMENT - GENERAL,EARLY HELP AND SCHOOLS
Rochdale Borough Council,e1019331,06/01/2016,"11,344.66",BEECHKEYS CARE AND EDUCATION,OTHER LA`S - SEN PROVISION,EARLY HELP AND SCHOOLS
Rochdale Borough Council,s1019844,06/01/2016,"5,089.10",POLICE AND CRIME COMMISSIONER FOR GTR MANCHESTER,SUBSCRIPTIONS,PHYSICAL DIS & OLDER PEOPLE
Rochdale Borough Council,x1012053,06/01/2016,"9,000.00",TRAFFORD MBC,ADOPTION PAYMENTS,CHILDREN�S SOCIAL CARE
Rochdale Borough Council,e1019339,07/01/2016,"5,330.00",DEEPLISH ACADEMY,RENTS,EARLY HELP AND SCHOOLS
Rochdale Borough Council,e1019348,07/01/2016,"52,897.50",AXIOM EDUCATION (ROCHDALE) LIMITED,IMPROVEMENTS-MODERNISATION,EARLY HELP AND SCHOOLS
Rochdale Borough Council,q1006079,07/01/2016,"9,163.00",BEVAN BRITTAN LLP,CONSULTANT FEES,ECONOMY DIRECTORATE
Rochdale Borough Council,q1006090,07/01/2016,"6,279.81",PHOENIX SOFTWARE LIMITED,SOFTWARE,NEIGHBOURHOODS AND ENVIRONMENT
Rochdale Borough Council,d1055336,08/01/2016,"29,750.00",ROCHDALE DEVELOPMENT AGENCY,FEES -CONSTRUCTION CONVERSION RENOVATION,ECONOMY DIRECTORATE
Rochdale Borough Council,d1055337,08/01/2016,"18,750.00",ROCHDALE DEVELOPMENT AGENCY,FEES -CONSTRUCTION CONVERSION RENOVATION,ECONOMY DIRECTORATE
Rochdale Borough Council,q1006093,08/01/2016,"5,040.00",TEAM TEACH LIMITED,TRAINING,CHILDREN�S SOCIAL CARE
Rochdale Borough Council,d1055338,10/01/2016,"10,964.00",H BELL & SONS ROCHDALE LTD,TRANSACTIONS-EXPENDITURE,PROPERTY AND HIGHWAYS
Rochdale Borough Council,e1019368,11/01/2016,"44,100.00",POSITIVE STEPS,EXTERNALLY MANAGED FUNDS,EARLY HELP AND SCHOOLS
Rochdale Borough Council,e1019374,11/01/2016,"6,696.00",TAMESIDE METROPOLITAN BOROUGH COUNCIL,OTHER EST - SEN PROVISION,EARLY HELP AND SCHOOLS
Rochdale Borough Council,e1019375,11/01/2016,"6,666.60",ROC NORTHWEST LTD,OTHER LA`S - SEN PROVISION,EARLY HELP AND SCHOOLS
Rochdale Borough Council,e1019383,11/01/2016,"32,470.00",PONTVILLE SCHOOL,OTHER LA`S - SEN PROVISION,EARLY HELP AND SCHOOLS
Rochdale Borough Council,e1019384,11/01/2016,"29,100.00",ROCHDALE GATEWAY LEISURE LIMITED,ACTIVITIES,EARLY HELP AND SCHOOLS
Rochdale Borough Council,f1004457,11/01/2016,"5,730.55",CO-OP PAYPOINT,BANK CHARGES,FINANCE SERVICES
Rochdale Borough Council,q1006102,11/01/2016,"425,254.00",AGILISYS LIMITED,AGILISYS CONTRACT,NEIGHBOURHOODS AND ENVIRONMENT
Rochdale Borough Council,d1055382,12/01/2016,"7,700.00",ROCHDALE BOROUGH SHOPMOBILITY,GRANTS TO THE VOLUNTARY SECTOR,ECONOMY DIRECTORATE
Rochdale Borough Council,d1055413,13/01/2016,"27,000.00",EMO OIL LIMITED,TRANSACTIONS-EXPENDITURE,NEIGHBOURHOODS AND ENVIRONMENT
Rochdale Borough Council,d1055415,13/01/2016,"6,845.04",WINTON FLOORING LIMITED,TRANSACTIONS-EXPENDITURE,PROPERTY AND HIGHWAYS
Rochdale Borough Council,d1055438,13/01/2016,"36,915.00",UNITY PARTNERSHIP LTD,AGENCY STAFF,PROPERTY AND HIGHWAYS
Rochdale Borough Council,e1019402,13/01/2016,"8,585.16",AXIOM EDUCATION (ROCHDALE) LIMITED,IMPROVEMENTS-MODERNISATION,EARLY HELP AND SCHOOLS
Rochdale Borough Council,e1019414,13/01/2016,"10,000.00",THE INNOVATION UNIT LTD,PROJECTS,EARLY HELP AND SCHOOLS
Rochdale Borough Council,d1055449,14/01/2016,"10,999.00",J C MILLS & SON LIMITED,IMPROVEMENTS-MODERNISATION,PROPERTY AND HIGHWAYS
Rochdale Borough Council,d1055469,14/01/2016,"82,981.80",CAPITA PROPERTY AND INFRASTRUCTURE LTD,MAINTENANCE,PROPERTY AND HIGHWAYS
Rochdale Borough Council,e1019438,14/01/2016,"6,987.40",ERNST & YOUNG LLP,CONSULTANTS FEES,EARLY HELP AND SCHOOLS
Rochdale Borough Council,e1019439,14/01/2016,"6,590.56",ERNST & YOUNG LLP,CONSULTANTS FEES,EARLY HELP AND SCHOOLS
Rochdale Borough Council,q1006131,14/01/2016,"6,035.00",BARRACUDA NETWORKS INC,SOFTWARE,NEIGHBOURHOODS AND ENVIRONMENT
Rochdale Borough Council,e1019454,15/01/2016,"9,384.00",OLDHAM METROPOLITAN BOROUGH COUNCIL,OTHER EST - SEN PROVISION,EARLY HELP AND SCHOOLS
Rochdale Borough Council,ph101121,15/01/2016,"22,218.00",PENNINE CARE NHS,PH PENNINE CARE CONTRACT,PUBLIC HEALTH
Rochdale Borough Council,d1055544,18/01/2016,"6,230.00",DDH FABRICATIONS LTD,ACTIVITIES,NEIGHBOURHOODS AND ENVIRONMENT
Rochdale Borough Council,e1019472,18/01/2016,"409,130.78",INSPIREDSPACES ROCHDALE PROJECTCO2 LTD,PFI SCHEMES RPIX,EARLY HELP AND SCHOOLS
Rochdale Borough Council,e1019473,18/01/2016,"665,058.63",AXIOM EDUCATION (ROCHDALE) LIMITED,PFI SCHEMES RPIX,EARLY HELP AND SCHOOLS
Rochdale Borough Council,e1019479,18/01/2016,"5,000.00",LINK4LIFE (CHARITY),ACTIVITIES,EARLY HELP AND SCHOOLS
Rochdale Borough Council,f1004464,18/01/2016,"14,850.00",AGILISYS LIMITED,SOFTWARE,FINANCE SERVICES
Rochdale Borough Council,ph101123,18/01/2016,"14,969.00",THE PENNINE ACUTE HOSPITALS NHS TRUST,PH OTHER CONTRACTS,PUBLIC HEALTH
Rochdale Borough Council,d1055555,19/01/2016,"31,000.00",GM BUSINESS SUPPORT LIMITED,ACTIVITIES,ECONOMY DIRECTORATE
Rochdale Borough Council,d1055558,19/01/2016,"6,749.09",WINTON FLOORING LIMITED,TRANSACTIONS-EXPENDITURE,PROPERTY AND HIGHWAYS
Rochdale Borough Council,d1055561,19/01/2016,"5,280.00",BARTEC AUTO ID LTD,MAINTENANCE,NEIGHBOURHOODS AND ENVIRONMENT
Rochdale Borough Council,e1019489,19/01/2016,"22,680.10",AXIOM EDUCATION (ROCHDALE) LIMITED,"DEV CAP - NEW CONSTRUCTION,CONVERSION",EARLY HELP AND SCHOOLS
Rochdale Borough Council,e1019504,19/01/2016,"13,059.00",ROSSENDALE SCHOOL PRIORY,OTHER LA`S - SEN PROVISION,EARLY HELP AND SCHOOLS
Rochdale Borough Council,q1006160,19/01/2016,"5,591.00",VODAFONE LTD,TELEPHONE EXPENDITURE,NEIGHBOURHOODS AND ENVIRONMENT
Rochdale Borough Council,q1006162,19/01/2016,"64,800.00",XMA LIMITED,PURCHASE OF ICT HARDWARE,NEIGHBOURHOODS AND ENVIRONMENT
Rochdale Borough Council,q1006164,19/01/2016,"5,434.00",CLYDE & CO,LEGAL SERVICES INTERNAL,ECONOMY DIRECTORATE
Rochdale Borough Council,s1019873,19/01/2016,"6,620.00",A & S BUILDING & ROOFING,IMPROVEMENTS-EXTENSIONS & ALTERATIONS,PHYSICAL DIS & OLDER PEOPLE
Rochdale Borough Council,s1019878,19/01/2016,"8,964.56",ASTOR BANNERMAN (MEDICAL) LTD,TRANSACTIONS-EXPENDITURE,PHYSICAL DIS & OLDER PEOPLE
Rochdale Borough Council,s1019888,19/01/2016,"15,870.60",NEWLINE ADAPTATIONS LTD,IMPROVEMENTS-EXTENSIONS & ALTERATIONS,PHYSICAL DIS & OLDER PEOPLE
Rochdale Borough Council,d1055599,20/01/2016,"29,680.05",ROCHDALE HOUSING INITIATIVE,CONSULTANTS FEES,NEIGHBOURHOODS AND ENVIRONMENT
Rochdale Borough Council,d1055606,20/01/2016,"14,850.00",MARCHBRIDGE BUILDERS LIMITED,IMPROVEMENTS-MODERNISATION,PROPERTY AND HIGHWAYS
Rochdale Borough Council,e1019516,20/01/2016,"17,472.00",BEVAN BRITTAN LLP,CONSULTANTS FEES,EARLY HELP AND SCHOOLS
Rochdale Borough Council,f1004473,20/01/2016,"13,875.00",CAPITA TREASURY SOLUTIONS LTD,CONSULTANT FEES,FINANCE SERVICES
Rochdale Borough Council,q1006166,20/01/2016,"11,995.00",FREEDOM COMMUNICATIONS,IT MAINTENANCE,NEIGHBOURHOODS AND ENVIRONMENT
Rochdale Borough Council,q1006170,20/01/2016,"11,173.00",FREEDOM COMMUNICATIONS,IT MAINTENANCE,NEIGHBOURHOODS AND ENVIRONMENT
Rochdale Borough Council,q1006172,20/01/2016,"50,548.32",XEROX UK LTD,TRANSACTIONS-EXPENDITURE,NEIGHBOURHOODS AND ENVIRONMENT
Rochdale Borough Council,d1055636,21/01/2016,"45,054.76",CARIBOU GREEN WARMTH LLP,PROPERTY REFURBISHMENT (HOUSING),NEIGHBOURHOODS AND ENVIRONMENT
Rochdale Borough Council,d1055637,21/01/2016,"72,657.53",CARIBOU GREEN WARMTH LLP,PROPERTY REFURBISHMENT (HOUSING),NEIGHBOURHOODS AND ENVIRONMENT
Rochdale Borough Council,e1019533,21/01/2016,"46,450.00",LANCASHIRE COUNTY COUNCIL,OTHER EST - SEN PROVISION,EARLY HELP AND SCHOOLS
Rochdale Borough Council,e1019535,21/01/2016,"14,337.51",BURY MBC,OTHER EST - SEN PROVISION,EARLY HELP AND SCHOOLS
Rochdale Borough Council,s1019897,21/01/2016,"5,220.00",D W TAYLOR & SON,TRANSACTIONS-EXPENDITURE,PHYSICAL DIS & OLDER PEOPLE
Rochdale Borough Council,s1019899,21/01/2016,"12,250.00",ACTION FIRST IPEOPLE LTD,EXPENSES - GENERAL,PHYSICAL DIS & OLDER PEOPLE
Rochdale Borough Council,d1055687,22/01/2016,"6,255.59",C E S LTD,IMPROVEMENTS-MODERNISATION,PROPERTY AND HIGHWAYS
Rochdale Borough Council,q1006187,22/01/2016,"5,434.00",CLYDE & CO,LEGAL SERVICES EXTERNAL,ECONOMY DIRECTORATE
Rochdale Borough Council,q1006193,22/01/2016,"77,608.50",SPECIALIST COMPUTER CENTRES PLC,PURCHASE OF ICT HARDWARE,NEIGHBOURHOODS AND ENVIRONMENT
Rochdale Borough Council,q1006194,22/01/2016,"8,500.00",OPTEVIA LTD,PURCHASE OF ICT SOFTWARE,NEIGHBOURHOODS AND ENVIRONMENT
Rochdale Borough Council,q1006196,22/01/2016,"20,520.00",SOFTCAT LTD,SOFTWARE,NEIGHBOURHOODS AND ENVIRONMENT
Rochdale Borough Council,d1055715,25/01/2016,"5,000.00",SKYLIGHT CIRCUS ARTS,ACTIVITIES,ECONOMY DIRECTORATE
Rochdale Borough Council,d1055740,25/01/2016,"176,095.00",VBA JOINT VENTURE LTD,NEW CONSTRUCTION,ECONOMY DIRECTORATE
Rochdale Borough Council,d1055743,25/01/2016,"6,318.00",TRAKM8 LIMITED,EQUIPMENT - GENERAL,NEIGHBOURHOODS AND ENVIRONMENT
Rochdale Borough Council,e1019556,25/01/2016,"13,662.20",AXIOM EDUCATION (ROCHDALE) LIMITED,WATER CHARGES,EARLY HELP AND SCHOOLS
Rochdale Borough Council,q1006203,25/01/2016,"13,000.00",STEPPING STONE PROJECT ROCHDALE LTD,CONTRACTED SERVICES,NEIGHBOURHOODS AND ENVIRONMENT
Rochdale Borough Council,d1055759,26/01/2016,"24,000.00",EMO OIL LIMITED,TRANSACTIONS-EXPENDITURE,NEIGHBOURHOODS AND ENVIRONMENT
Rochdale Borough Council,e1019560,26/01/2016,"39,212.95",TRANSPORT FOR GREATER MANCHESTER,STUDENT TRAVEL,EARLY HELP AND SCHOOLS
Rochdale Borough Council,e1019571,26/01/2016,"30,514.35",BURY MBC,OTHER EST - SEN PROVISION,EARLY HELP AND SCHOOLS
Rochdale Borough Council,e1019574,26/01/2016,"21,764.43",BURY MBC,OTHER EST - SEN PROVISION,EARLY HELP AND SCHOOLS
Rochdale Borough Council,e1019587,26/01/2016,"10,475.04",AXIOM EDUCATION (ROCHDALE) LIMITED,"DEV CAP - NEW CONSTRUCTION,CONVERSION",EARLY HELP AND SCHOOLS
Rochdale Borough Council,d1055782,27/01/2016,"334,801.54",COMMUNITY LIGHTING PARTNERSHIP ROCHDALE LTD,PFI SCHEMES RPIX,PROPERTY AND HIGHWAYS
Rochdale Borough Council,d1055783,27/01/2016,"11,265.00",ASBESTOS BUSINESS CONTRACTORS LTD,IMPROVEMENTS-MODERNISATION,PROPERTY AND HIGHWAYS
Rochdale Borough Council,e1019604,27/01/2016,"8,823.20",SPORT WORKS,ACTIVITIES,EARLY HELP AND SCHOOLS
Rochdale Borough Council,q1006223,27/01/2016,"6,400.00",ATEN SHEARWOOD DEVELOPMENT,TRAINING,CHILDREN�S SOCIAL CARE
Rochdale Borough Council,x1012118,27/01/2016,"8,600.00",SIGNIS LIMITED,MISC CHARGES,CHILDREN�S SOCIAL CARE
Rochdale Borough Council,d1055797,28/01/2016,"8,000.00",BUREAU VAN DIJK ELECTRONIC PUBLISHING,ACTIVITIES,ECONOMY DIRECTORATE
Rochdale Borough Council,d1055798,28/01/2016,"9,388.34",BURNT TREE GROUP,TRANSACTIONS-EXPENDITURE,NEIGHBOURHOODS AND ENVIRONMENT
Rochdale Borough Council,e1019629,28/01/2016,"9,175.00",MANTRA LINGUA LTD,PRINTING & STATIONERY,EARLY HELP AND SCHOOLS
Rochdale Borough Council,f1004492,28/01/2016,"24,800.00",GRANT THORNTON UK LLP,FEES / COMMISSION,FINANCE SERVICES
Rochdale Borough Council,q1006237,28/01/2016,"19,000.00",EVERYTHING EVERYWHERE LIMITED,TRANSACTIONS-EXPENDITURE,NEIGHBOURHOODS AND ENVIRONMENT
Rochdale Borough Council,s1019913,28/01/2016,"6,300.00",ACTION FIRST IPEOPLE LTD,FEES / COMMISSION,PHYSICAL DIS & OLDER PEOPLE
Rochdale Borough Council,s1019915,28/01/2016,"58,593.33",NHS HEYWOOD MIDDLETON AND ROCHDALE CCG,SERVICE LEVEL AGREEMENTS,PHYSICAL DIS & OLDER PEOPLE
Rochdale Borough Council,e1019635,29/01/2016,"7,500.00",CHILDREN AND FAMILIES ACROSS BORDERS,FEES / COMMISSION,CHILDREN�S SOCIAL CARE
Rochdale Borough Council,q1006242,29/01/2016,"166,265.90",CAPITA BUSINESS SERVICES LIMITED,SOFTWARE,NEIGHBOURHOODS AND ENVIRONMENT
Rochdale Borough Council,q1006244,29/01/2016,"34,799.00",FREEDOM COMMUNICATIONS,PURCHASE OF ICT SOFTWARE,NEIGHBOURHOODS AND ENVIRONMENT
Rochdale Borough Council,s1019916,29/01/2016,"130,000.00",ROSS CARE,SERVICE LEVEL AGREEMENTS,PHYSICAL DIS & OLDER PEOPLE
Rochdale Borough Council,e1019641,01/02/2016,"9,575.00",REAL TRUST,ACTIVITIES,EARLY HELP AND SCHOOLS
Rochdale Borough Council,e1019650,01/02/2016,"8,511.66",HORIZON CARE AND EDUCATION,OTHER LA`S - SEN PROVISION,EARLY HELP AND SCHOOLS
Rochdale Borough Council,f1004500,01/02/2016,"9,000.00",NORTHGATE PUBLIC SERVICES (UK) LTD,EXTERNAL CONTRACTED PRINTING,FINANCE SERVICES
Rochdale Borough Council,ph101140,01/02/2016,"369,777.00",PENNINE CARE NHS,PH PENNINE CARE CONTRACT,PUBLIC HEALTH
Rochdale Borough Council,ph101148,01/02/2016,"119,537.00",PENNINE CARE NHS,PH PENNINE CARE CONTRACT,PUBLIC HEALTH
Rochdale Borough Council,d1055897,02/02/2016,"38,123.53",H BELL & SONS ROCHDALE LTD,PROPERTY - WORKS ELEMENT,NEIGHBOURHOODS AND ENVIRONMENT
Rochdale Borough Council,d1055924,02/02/2016,"5,760.00",DALE INDUSTRIAL SERVICES LIMITED,TAXI HIRE,NEIGHBOURHOODS AND ENVIRONMENT
Rochdale Borough Council,e1019668,02/02/2016,"113,901.28",DIOCESE OF SALFORD,IMPROVEMENTS-MODERNISATION,EARLY HELP AND SCHOOLS
Rochdale Borough Council,d1055941,03/02/2016,"138,262.20",RIVERSIDE TRUCK RENTAL,LONG TERM CONTRACTED EXTERNAL HIRE,NEIGHBOURHOODS AND ENVIRONMENT
Rochdale Borough Council,d1055948,03/02/2016,"30,000.00",THE BOND BOARD LIMITED,PROPERTY REFURBISHMENT (HOUSING),NEIGHBOURHOODS AND ENVIRONMENT
Rochdale Borough Council,e1019680,03/02/2016,"324,209.51",INSPIREDSPACES ROCHDALE PROJECT CO1 LTD,PFI SCHEMES RPIX,EARLY HELP AND SCHOOLS
Rochdale Borough Council,e1019681,03/02/2016,"10,592.07",BELMONT SCHOOL LIMITED,OTHER LA`S - SEN PROVISION,EARLY HELP AND SCHOOLS
Rochdale Borough Council,e1019684,03/02/2016,"10,390.32",BELMONT SCHOOL LIMITED,OTHER LA`S - SEN PROVISION,EARLY HELP AND SCHOOLS
Rochdale Borough Council,e1019685,03/02/2016,"5,330.00",DEEPLISH ACADEMY,RENTS,EARLY HELP AND SCHOOLS
Rochdale Borough Council,q1006268,03/02/2016,"43,000.00",SAFEGARD SECURITY SOLUTIONS,SECURITY,NEIGHBOURHOODS AND ENVIRONMENT
Rochdale Borough Council,q1006269,03/02/2016,"27,000.00",SAFEGARD SECURITY SOLUTIONS,SECURITY,NEIGHBOURHOODS AND ENVIRONMENT
Rochdale Borough Council,q1006273,03/02/2016,"9,649.00",ASTRA ALARMS SYSTEMS LTD,EQUIPMENT - GENERAL,NEIGHBOURHOODS AND ENVIRONMENT
Rochdale Borough Council,s1019924,03/02/2016,"32,113.50",ROSS CARE,OTHER AGENCIES,BETTER CARE FUND POOLED BUDGET
Rochdale Borough Council,s1019925,03/02/2016,"43,152.30",ROSS CARE,OTHER AGENCIES,BETTER CARE FUND POOLED BUDGET
Rochdale Borough Council,s1019926,03/02/2016,"50,590.61",ROSS CARE,OTHER AGENCIES,BETTER CARE FUND POOLED BUDGET
Rochdale Borough Council,s1019927,03/02/2016,"50,345.89",ROSS CARE,OTHER AGENCIES,BETTER CARE FUND POOLED BUDGET
Rochdale Borough Council,s1019928,03/02/2016,"43,630.18",ROSS CARE,OTHER AGENCIES,BETTER CARE FUND POOLED BUDGET
Rochdale Borough Council,s1019929,03/02/2016,"62,864.32",ROSS CARE,OTHER AGENCIES,BETTER CARE FUND POOLED BUDGET
Rochdale Borough Council,s1019930,03/02/2016,"65,494.20",ROSS CARE,OTHER AGENCIES,BETTER CARE FUND POOLED BUDGET
Rochdale Borough Council,s1019936,03/02/2016,"12,575.00",ADAPT BUILDING SERVICES LTD,IMPROVEMENTS-EXTENSIONS & ALTERATIONS,PHYSICAL DIS & OLDER PEOPLE
Rochdale Borough Council,s1019940,03/02/2016,"5,832.00",STANNAH LIFT SERVICES LTD,IMPROVEMENTS-EXTENSIONS & ALTERATIONS,PHYSICAL DIS & OLDER PEOPLE
Rochdale Borough Council,d1055971,04/02/2016,"18,275.00",MECHPLANT NORTH WEST LIMITED,PURCHASE OF PLANT AND MACHINERY,NEIGHBOURHOODS AND ENVIRONMENT
Rochdale Borough Council,e1019706,04/02/2016,"24,477.36",AXIOM EDUCATION (ROCHDALE) LIMITED,MEALS,EARLY HELP AND SCHOOLS
Rochdale Borough Council,ph101152,04/02/2016,"138,408.00",BIG LIFE CENTRES,PH BIG LIFE CONTRACT,PUBLIC HEALTH
Rochdale Borough Council,q1006281,04/02/2016,"24,998.00",SOFTCAT LTD,PURCHASE OF ICT SOFTWARE,NEIGHBOURHOODS AND ENVIRONMENT
Rochdale Borough Council,d1056003,05/02/2016,"7,570.00",BALMERS GM LTD,PURCHASE OF PLANT AND MACHINERY,NEIGHBOURHOODS AND ENVIRONMENT
Rochdale Borough Council,d1056011,05/02/2016,"115,435.00",MAYER EXCAVATION AND  SKIP HIRE LIMITED,EQUIPMENT - GENERAL,NEIGHBOURHOODS AND ENVIRONMENT
Rochdale Borough Council,e1019708,05/02/2016,"6,000.00",OPEN OBJECTS SOFTWARE LTD,REPROGRAPHIC EXPENSES,EARLY HELP AND SCHOOLS
Rochdale Borough Council,e1019711,05/02/2016,"414,124.43",INSPIREDSPACES ROCHDALE PROJECTCO2 LTD,PFI SCHEMES RPIX,EARLY HELP AND SCHOOLS
Rochdale Borough Council,e1019712,05/02/2016,"9,800.00",CHRISTINE FOSTER LIMITED,AGENCY STAFF,CHILDREN�S SOCIAL CARE
Rochdale Borough Council,q1006284,05/02/2016,"9,790.13",POLICE AND CRIME COMMISSIONER FOR GTR MANCHESTER,CONTRACTED SERVICES,NEIGHBOURHOODS AND ENVIRONMENT
Rochdale Borough Council,q1006285,05/02/2016,"8,950.02",POLICE AND CRIME COMMISSIONER FOR GTR MANCHESTER,CONTRACTED SERVICES,NEIGHBOURHOODS AND ENVIRONMENT
Rochdale Borough Council,s1019948,05/02/2016,"458,333.00",THE PENNINE ACUTE HOSPITALS NHS TRUST,CONTRACTS,BETTER CARE FUND POOLED BUDGET
Rochdale Borough Council,d1056036,08/02/2016,"9,950.00",PETRUS,CONTRACTED SERVICES,NEIGHBOURHOODS AND ENVIRONMENT
Rochdale Borough Council,e1019743,08/02/2016,"31,502.12",AXIOM EDUCATION (ROCHDALE) LIMITED,MEALS,EARLY HELP AND SCHOOLS
Rochdale Borough Council,e1019746,08/02/2016,"663,986.84",AXIOM EDUCATION (ROCHDALE) LIMITED,PFI SCHEMES RPIX,EARLY HELP AND SCHOOLS
Rochdale Borough Council,f1004506,08/02/2016,"6,175.00",CIPFA BUSINESS LIMITED,TRAINING-NON QUALIFICATION,FINANCE SERVICES
Rochdale Borough Council,q1006296,08/02/2016,"6,220.00",ALONGSIDE,TRAINING,FINANCE SERVICES
Rochdale Borough Council,x1012162,08/02/2016,"14,333.00",BARNARDOS,ADOPTION PAYMENTS,CHILDREN�S SOCIAL CARE
Rochdale Borough Council,d1056039,09/02/2016,"22,691.72",BRAHM FUNDCO 2 LTD,PFI SCHEMES RPI,ECONOMY DIRECTORATE
Rochdale Borough Council,d1056040,09/02/2016,"25,250.00",UNITY PARTNERSHIP LTD,CONSULTANT FEES,PROPERTY AND HIGHWAYS
Rochdale Borough Council,d1056042,09/02/2016,"12,000.00",GMCA,ROADWORKS,ECONOMY DIRECTORATE
Rochdale Borough Council,d1056078,09/02/2016,"120,000.00",BENDCRETE LEISURE LTD,PURCHASE OF OTHER EQUIPMENT,NEIGHBOURHOODS AND ENVIRONMENT
Rochdale Borough Council,d1056083,09/02/2016,"120,000.00",CLYDE & CO,LEGAL SERVICES EXTERNAL,ECONOMY DIRECTORATE
Rochdale Borough Council,e1019749,09/02/2016,"22,093.00",AXIOM EDUCATION (ROCHDALE) LIMITED,"DEV CAP - NEW CONSTRUCTION,CONVERSION",EARLY HELP AND SCHOOLS
Rochdale Borough Council,e1019751,09/02/2016,"8,848.00",OLDHAM METROPOLITAN BOROUGH COUNCIL,OTHER EST - SEN PROVISION,EARLY HELP AND SCHOOLS
Rochdale Borough Council,e1019752,09/02/2016,"16,351.00",OLDHAM METROPOLITAN BOROUGH COUNCIL,OTHER EST - SEN PROVISION,EARLY HELP AND SCHOOLS
Rochdale Borough Council,e1019758,09/02/2016,"13,500.00",POSITIVE STEPS,EXTERNALLY MANAGED FUNDS,EARLY HELP AND SCHOOLS
Rochdale Borough Council,e1019761,09/02/2016,"7,600.00",EVIDENCE BASED PSYCHOLOGY HUB LTD,ACTIVITIES,EARLY HELP AND SCHOOLS
Rochdale Borough Council,e1019763,09/02/2016,"10,000.00",EVIDENCE BASED PSYCHOLOGY HUB LTD,ACTIVITIES,EARLY HELP AND SCHOOLS
Rochdale Borough Council,e1019778,09/02/2016,"44,100.00",POSITIVE STEPS,EXTERNALLY MANAGED FUNDS,EARLY HELP AND SCHOOLS
Rochdale Borough Council,e1019779,09/02/2016,"44,100.00",POSITIVE STEPS,EXTERNALLY MANAGED FUNDS,EARLY HELP AND SCHOOLS
Rochdale Borough Council,f1004509,09/02/2016,"5,516.91",CO-OP PAYPOINT,BANK CHARGES,FINANCE SERVICES
Rochdale Borough Council,ph101161,09/02/2016,"191,340.00",VIRGIN CARE SERVICES LIMITED,PH PENNINE CARE CONTRACT,PUBLIC HEALTH
Rochdale Borough Council,q1006314,09/02/2016,"6,442.00",SOFTCAT LTD,PURCHASE OF ICT HARDWARE,NEIGHBOURHOODS AND ENVIRONMENT
Rochdale Borough Council,q1006318,09/02/2016,"8,376.06",LITTLEDALE HALL THERAPEUTIC COMMUNITY LTD,CONTRACTED SERVICES,NEIGHBOURHOODS AND ENVIRONMENT
Rochdale Borough Council,q1006321,09/02/2016,"13,110.00",TURNING POINT SERVICES LIMITED,CONTRACTED SERVICES,NEIGHBOURHOODS AND ENVIRONMENT
Rochdale Borough Council,d1056085,10/02/2016,"31,000.00",GM BUSINESS SUPPORT LIMITED,GRANTS TO THE VOLUNTARY SECTOR,ECONOMY DIRECTORATE
Rochdale Borough Council,d1056109,10/02/2016,"30,000.00",GM BUSINESS SUPPORT LIMITED,GRANTS TO THE VOLUNTARY SECTOR,ECONOMY DIRECTORATE
Rochdale Borough Council,d1056114,10/02/2016,"6,593.50",SQUIRE PATTON BOGGS UK LLP,LEGAL SERVICES EXTERNAL,ECONOMY DIRECTORATE
Rochdale Borough Council,d1056138,10/02/2016,"7,337.82",NORTHGATE VEHICLE HIRE LIMITED,TRANSACTIONS-EXPENDITURE,NEIGHBOURHOODS AND ENVIRONMENT
Rochdale Borough Council,d1056139,10/02/2016,"6,458.13",NORTHGATE VEHICLE HIRE LIMITED,TRANSACTIONS-EXPENDITURE,NEIGHBOURHOODS AND ENVIRONMENT
Rochdale Borough Council,d1056140,10/02/2016,"7,980.43",NORTHGATE VEHICLE HIRE LIMITED,TRANSACTIONS-EXPENDITURE,NEIGHBOURHOODS AND ENVIRONMENT
Rochdale Borough Council,d1056148,10/02/2016,"24,477.60",CARIBOU GREEN WARMTH LLP,SURVEYORS FEES,NEIGHBOURHOODS AND ENVIRONMENT
Rochdale Borough Council,e1019800,10/02/2016,"5,333.28",ROC NORTHWEST LTD,OTHER LA`S - SEN PROVISION,EARLY HELP AND SCHOOLS
Rochdale Borough Council,e1019801,10/02/2016,"8,074.50",CUMBERLAND SCHOOL,OTHER LA`S - SEN PROVISION,EARLY HELP AND SCHOOLS
Rochdale Borough Council,e1019802,10/02/2016,"16,149.00",CUMBERLAND SCHOOL,OTHER LA`S - SEN PROVISION,EARLY HELP AND SCHOOLS
Rochdale Borough Council,d1056152,11/02/2016,"22,898.80",BURY SKIP HIRE,EXPENSES - GENERAL,NEIGHBOURHOODS AND ENVIRONMENT
Rochdale Borough Council,d1056167,11/02/2016,"17,460.00",NOMICAL LTD,SUPPLIES AND SERVICES PROVISION,ECONOMY DIRECTORATE
Rochdale Borough Council,d1056171,11/02/2016,"5,000.00",ISAAC BUTTERWORTH (IRONFOUNDERS) LIMITED,EQUIPMENT - GENERAL,NEIGHBOURHOODS AND ENVIRONMENT
Rochdale Borough Council,e1019807,11/02/2016,"16,420.66",AXIOM EDUCATION (ROCHDALE) LIMITED,"DEV CAP - NEW CONSTRUCTION,CONVERSION",EARLY HELP AND SCHOOLS
Rochdale Borough Council,e1019815,11/02/2016,"5,250.00",NISAI LEARNING,ACTIVITIES,EARLY HELP AND SCHOOLS
Rochdale Borough Council,e1019828,11/02/2016,"5,460.01",SMARTBOX ASSISTIVE TECHNOLOGY LTD,EQUIPMENT - GENERAL,EARLY HELP AND SCHOOLS
Rochdale Borough Council,q1006336,11/02/2016,"600,000.00",GALLAGHER BASSETT INTERNATIONAL LTD,TRANSACTIONS-EXPENDITURE,FINANCE SERVICES
Rochdale Borough Council,q1006337,11/02/2016,"9,930.00",ME LEARNING LIMITED,TRAINING,CHILDREN�S SOCIAL CARE
Rochdale Borough Council,q1006338,11/02/2016,"32,542.00",AON LIMITED,TRANSACTIONS-EXPENDITURE,FINANCE SERVICES
Rochdale Borough Council,q1006339,11/02/2016,"11,500.00",AON LIMITED,TRANSACTIONS-EXPENDITURE,FINANCE SERVICES
Rochdale Borough Council,s1019972,11/02/2016,"13,184.53",BROADWAY BUILDING CONTRACTORS OLDHAM LTD,IMPROVEMENTS-EXTENSIONS & ALTERATIONS,PHYSICAL DIS & OLDER PEOPLE
Rochdale Borough Council,s1019973,11/02/2016,"9,881.00",TERRY GROUP LTD,IMPROVEMENTS-EXTENSIONS & ALTERATIONS,PHYSICAL DIS & OLDER PEOPLE
Rochdale Borough Council,s1019977,11/02/2016,"26,912.23",HIGH BARN CONSTRUCTION LIMITED,IMPROVEMENTS-EXTENSIONS & ALTERATIONS,PHYSICAL DIS & OLDER PEOPLE
Rochdale Borough Council,x1012182,11/02/2016,"5,308.77",HOLY FAMILY CATHOLIC PRIMARY SCHOOL,FEES / COMMISSION,CHILDREN�S SOCIAL CARE
Rochdale Borough Council,d1056191,12/02/2016,"8,000.00",NO WORRIES IT LTD,BASIC SALARIES,ECONOMY DIRECTORATE
Rochdale Borough Council,d1056192,12/02/2016,"6,600.00",NO WORRIES IT LTD,BASIC SALARIES,ECONOMY DIRECTORATE
Rochdale Borough Council,d1056222,12/02/2016,"31,782.50",BETHELL CONSTRUCTION LTD,IMPROVEMENTS-MODERNISATION,PROPERTY AND HIGHWAYS
Rochdale Borough Council,d1056225,12/02/2016,"37,118.10",CARIBOU GREEN WARMTH LLP,PROPERTY REFURBISHMENT (HOUSING),NEIGHBOURHOODS AND ENVIRONMENT
Rochdale Borough Council,e1019837,12/02/2016,"8,823.20",SPORT WORKS,ACTIVITIES,EARLY HELP AND SCHOOLS
Rochdale Borough Council,e1019847,12/02/2016,"5,400.00",CRICK SOFTWARE LIMITED,EQUIPMENT - GENERAL,EARLY HELP AND SCHOOLS
Rochdale Borough Council,f1004516,12/02/2016,"5,640.05",CAPITA BUSINESS SERVICES LIMITED,SOFTWARE,FINANCE SERVICES
Rochdale Borough Council,q1006344,12/02/2016,"17,464.00",EDENHOUSE SOLUTIONS LTD,SOFTWARE,NEIGHBOURHOODS AND ENVIRONMENT
Rochdale Borough Council,q1006349,12/02/2016,"6,600.00",UPDATA INFRASTRUCTURE UK LTD,TELEPHONE EXPENDITURE,NEIGHBOURHOODS AND ENVIRONMENT
Rochdale Borough Council,d1056253,15/02/2016,"12,442.20",F W SHERRATT LTD,MAINTENANCE,PROPERTY AND HIGHWAYS
Rochdale Borough Council,e1019856,15/02/2016,"20,075.07",AXIOM EDUCATION (ROCHDALE) LIMITED,"DEV CAP - NEW CONSTRUCTION,CONVERSION",EARLY HELP AND SCHOOLS
Rochdale Borough Council,e1019858,15/02/2016,"5,400.00",POSITIVE STEPS,COSTS MET BY SCHOOL,EARLY HELP AND SCHOOLS
Rochdale Borough Council,e1019878,15/02/2016,"12,903.00",CITY OF BRADFORD METROPOLITAN DISTRICT COUNCIL,OTHER EST - SEN PROVISION,EARLY HELP AND SCHOOLS
Rochdale Borough Council,q1006367,15/02/2016,"12,414.42",THOMSON REUTERS,REFRESHMENTS,FINANCE SERVICES
Rochdale Borough Council,q1006373,15/02/2016,"26,642.00",CLYDE & CO,LEGAL SERVICES EXTERNAL,ECONOMY DIRECTORATE
Rochdale Borough Council,x1012195,15/02/2016,"18,000.00",NUGENT CARE,ADOPTION PAYMENTS,CHILDREN�S SOCIAL CARE
Rochdale Borough Council,x1012200,15/02/2016,"5,467.00",YOUTH JUSTICE BOARD,SERVICE LEVEL AGREEMENTS,CHILDREN�S SOCIAL CARE
Rochdale Borough Council,x1012203,15/02/2016,"5,310.00",YOUTH JUSTICE BOARD,SERVICE LEVEL AGREEMENTS,CHILDREN�S SOCIAL CARE
Rochdale Borough Council,x1012204,15/02/2016,"5,487.00",YOUTH JUSTICE BOARD,SERVICE LEVEL AGREEMENTS,CHILDREN�S SOCIAL CARE
Rochdale Borough Council,x1012205,15/02/2016,"5,487.00",YOUTH JUSTICE BOARD,SERVICE LEVEL AGREEMENTS,CHILDREN�S SOCIAL CARE
Rochdale Borough Council,ph101181,16/02/2016,"14,969.00",THE PENNINE ACUTE HOSPITALS NHS TRUST,PH OTHER CONTRACTS,PUBLIC HEALTH
Rochdale Borough Council,q1006376,16/02/2016,"29,022.00",CLYDE & CO,LEGAL SERVICES EXTERNAL,ECONOMY DIRECTORATE
Rochdale Borough Council,q1006385,16/02/2016,"12,963.00",WEIGHTMANS LLP,PROFESSIONAL FEES,FINANCE SERVICES
Rochdale Borough Council,q1006392,16/02/2016,"9,300.00",LIQUIDLOGIC LTD,PURCHASE OF ICT SOFTWARE,NEIGHBOURHOODS AND ENVIRONMENT
Rochdale Borough Council,d1056291,17/02/2016,"12,677.96",IMPERATIVE ENERGY,PROPERTY - WORKS ELEMENT,NEIGHBOURHOODS AND ENVIRONMENT
Rochdale Borough Council,d1056296,17/02/2016,"5,042.25",BGS LTD,HIGHWAYS CONTRACT,PROPERTY AND HIGHWAYS
Rochdale Borough Council,d1056300,17/02/2016,"14,708.75",ROCHDALE TOWN CENTRE MANAGEMENT CO,GRANTS TO THE NON VOLUNTARY SECTOR,ECONOMY DIRECTORATE
Rochdale Borough Council,d1056321,18/02/2016,"19,839.00",D H WELTON & COMPANY (BUILDERS) LIMITED,TRANSACTIONS-EXPENDITURE,PROPERTY AND HIGHWAYS
Rochdale Borough Council,d1056327,18/02/2016,"16,940.00",F S MOULT & SON,REPAIRS & ALTS OF BUILDINGS,ECONOMY DIRECTORATE
Rochdale Borough Council,d1056331,18/02/2016,"17,310.00",PROFILE SECURITY SERVICES LIMITED,SECURITY,NEIGHBOURHOODS AND ENVIRONMENT
Rochdale Borough Council,s1019998,18/02/2016,"5,674.54",STANNAH LIFT SERVICES LTD,IMPROVEMENTS-EXTENSIONS & ALTERATIONS,PHYSICAL DIS & OLDER PEOPLE
Rochdale Borough Council,d1056346,19/02/2016,"71,835.28",CARIBOU GREEN WARMTH LLP,PROPERTY REFURBISHMENT (HOUSING),NEIGHBOURHOODS AND ENVIRONMENT
Rochdale Borough Council,d1056347,19/02/2016,"54,266.00",CARIBOU GREEN WARMTH LLP,PROPERTY REFURBISHMENT (HOUSING),NEIGHBOURHOODS AND ENVIRONMENT
Rochdale Borough Council,d1056348,19/02/2016,"7,437.15",TRANSPORT FOR GREATER MANCHESTER,NEW CONSTRUCTION,PROPERTY AND HIGHWAYS
Rochdale Borough Council,q1006423,19/02/2016,"12,528.00",SPECOPS SOFTWARE LTD,PURCHASE OF ICT SOFTWARE,NEIGHBOURHOODS AND ENVIRONMENT
Rochdale Borough Council,q1006433,19/02/2016,"81,000.00",BLACKPOOL BOROUGH COUNCIL,SOFTWARE,NEIGHBOURHOODS AND ENVIRONMENT
Rochdale Borough Council,q1006435,19/02/2016,"6,690.00",RICOH UK LTD,TRANSACTIONS-EXPENDITURE,NEIGHBOURHOODS AND ENVIRONMENT
Rochdale Borough Council,s1020001,19/02/2016,"7,000.00",ACTION FIRST IPEOPLE LTD,EXPENSES - GENERAL,PHYSICAL DIS & OLDER PEOPLE
Rochdale Borough Council,d1056367,22/02/2016,"7,664.00",YOTTA LIMITED,CONSULTANT FEES,PROPERTY AND HIGHWAYS
Rochdale Borough Council,d1056387,22/02/2016,"366,402.37",VBA JOINT VENTURE LTD,NEW CONSTRUCTION,ECONOMY DIRECTORATE
Rochdale Borough Council,d1056389,22/02/2016,"27,500.00",OLDHAM & ROCHDALE GROUNDWORK TRUST LTD,OTHER SURVEYS,NEIGHBOURHOODS AND ENVIRONMENT
Rochdale Borough Council,e1019919,22/02/2016,"7,380.00",CALDERDALE METROPOLITAN BOROUGH COUNCIL,OTHER EST - SEN PROVISION,EARLY HELP AND SCHOOLS
Rochdale Borough Council,q1006440,22/02/2016,"7,920.00",ASTRA ALARMS SYSTEMS LTD,MAINTENANCE,NEIGHBOURHOODS AND ENVIRONMENT
Rochdale Borough Council,q1006443,22/02/2016,"8,492.56",SOFTWARE BOX LTD,SOFTWARE,NEIGHBOURHOODS AND ENVIRONMENT
Rochdale Borough Council,x1012243,22/02/2016,"8,250.00",CARITAS CARE LTD,ADOPTION PAYMENTS,CHILDREN�S SOCIAL CARE
Rochdale Borough Council,d1056403,23/02/2016,"10,000.00",TRANSPORT FOR GREATER MANCHESTER,ROADWORKS,ECONOMY DIRECTORATE
Rochdale Borough Council,d1056407,23/02/2016,"10,000.00",GMCA,ROADWORKS,ECONOMY DIRECTORATE
Rochdale Borough Council,d1056416,23/02/2016,"49,993.20",CROMWELL POLYTHENE LIMITED,EQUIPMENT - GENERAL,NEIGHBOURHOODS AND ENVIRONMENT
Rochdale Borough Council,d1056427,23/02/2016,"31,500.00",EMO OIL LIMITED,TRANSACTIONS-EXPENDITURE,NEIGHBOURHOODS AND ENVIRONMENT
Rochdale Borough Council,d1056428,23/02/2016,"27,000.00",EMO OIL LIMITED,TRANSACTIONS-EXPENDITURE,NEIGHBOURHOODS AND ENVIRONMENT
Rochdale Borough Council,d1056431,23/02/2016,"5,303.32",AECOM INFRASTRUCTURE AND ENVIRONMENT UK LTD,DEMOLITION,NEIGHBOURHOODS AND ENVIRONMENT
Rochdale Borough Council,d1056432,23/02/2016,"9,388.34",BURNT TREE GROUP,TRANSACTIONS-EXPENDITURE,NEIGHBOURHOODS AND ENVIRONMENT
Rochdale Borough Council,q1006458,23/02/2016,"14,250.00",RISUAL LTD,CONSULTANTS FEES,NEIGHBOURHOODS AND ENVIRONMENT
Rochdale Borough Council,s1020020,23/02/2016,"25,000.00",NHS HEYWOOD MIDDLETON AND ROCHDALE CCG,SERVICE LEVEL AGREEMENTS,PHYSICAL DIS & OLDER PEOPLE
Rochdale Borough Council,x1012246,23/02/2016,"18,000.00",ADOPTION MATTERS NORTHWEST,ADOPTION PAYMENTS,CHILDREN�S SOCIAL CARE
Rochdale Borough Council,d1056457,24/02/2016,"16,450.00",AECOM PROFESSIONAL SERVICES LTD,IMPROVEMENTS-MODERNISATION,PROPERTY AND HIGHWAYS
Rochdale Borough Council,d1056464,24/02/2016,"415,091.00",COMMUNITY LIGHTING PARTNERSHIP ROCHDALE LTD,PFI SCHEMES RPIX,PROPERTY AND HIGHWAYS
Rochdale Borough Council,d1056473,24/02/2016,"15,000.00",KIRSTY RHIND,CONTINGENCY ALLOCATION,FINANCE CONTROL
Rochdale Borough Council,e1019966,24/02/2016,"8,905.00",PARENTS PLUS LTD,TRAINING,EARLY HELP AND SCHOOLS
Rochdale Borough Council,f1004530,24/02/2016,"5,720.00",CIPFA BUSINESS LIMITED,REFERENCE BOOKS/NEWSPAPERS/PERIODICALS,FINANCE SERVICES
Rochdale Borough Council,ph101188,24/02/2016,"119,580.00",PENNINE CARE NHS,PH PENNINE CARE CONTRACT,PUBLIC HEALTH
Rochdale Borough Council,ph101189,24/02/2016,"369,777.00",PENNINE CARE NHS,PH PENNINE CARE CONTRACT,PUBLIC HEALTH
Rochdale Borough Council,q1006468,24/02/2016,"17,920.00",LIQUIDLOGIC LTD,SOFTWARE,LEARNING DIS & MENTAL HEALTH
Rochdale Borough Council,q1006470,24/02/2016,"66,540.00",AGILISYS LIMITED,AGILISYS CONTRACT,NEIGHBOURHOODS AND ENVIRONMENT
Rochdale Borough Council,d1056500,25/02/2016,"27,984.00",J S C PLAY SERVICES LIMITED,PURCHASE OF OTHER EQUIPMENT,NEIGHBOURHOODS AND ENVIRONMENT
Rochdale Borough Council,d1056510,25/02/2016,"40,200.00",PETRUS,GRANTS TO THE VOLUNTARY SECTOR,NEIGHBOURHOODS AND ENVIRONMENT
Rochdale Borough Council,d1056511,25/02/2016,"8,881.10",ROCHDALE BOROUGHWIDE HOUSING,FEES / COMMISSION,NEIGHBOURHOODS AND ENVIRONMENT
Rochdale Borough Council,d1056512,25/02/2016,"10,500.00",BRENTWOOD,GRANTS TO THE VOLUNTARY SECTOR,NEIGHBOURHOODS AND ENVIRONMENT
Rochdale Borough Council,e1019980,25/02/2016,"23,607.00",CARE TODAY CHILDRENS SERVICES,INDEPENDENT UNITS,EARLY HELP AND SCHOOLS
Rochdale Borough Council,e1019988,25/02/2016,"6,930.00",NEW BRIDGE  SCHOOL,OTHER EST - SEN PROVISION,EARLY HELP AND SCHOOLS
Rochdale Borough Council,e1019989,25/02/2016,"5,915.87",NEW BRIDGE  SCHOOL,OTHER EST - SEN PROVISION,EARLY HELP AND SCHOOLS
Rochdale Borough Council,q1006472,25/02/2016,"48,945.64",NHS HEYWOOD MIDDLETON AND ROCHDALE CCG,CONTRACTED SERVICES,NEIGHBOURHOODS AND ENVIRONMENT
Rochdale Borough Council,x1012266,25/02/2016,"6,238.20",STOCKPORT PSYCHOLOGY SERVICES LIMITED,MEDICAL FEES,CHILDREN�S SOCIAL CARE
Rochdale Borough Council,s1020034,26/02/2016,"5,570.00",STANNAH LIFT SERVICES LTD,IMPROVEMENTS-EXTENSIONS & ALTERATIONS,PHYSICAL DIS & OLDER PEOPLE
Rochdale Borough Council,s1020049,26/02/2016,"9,110.00",HIGH BARN CONSTRUCTION LIMITED,IMPROVEMENTS-EXTENSIONS & ALTERATIONS,PHYSICAL DIS & OLDER PEOPLE
Rochdale Borough Council,s1020049,26/02/2016,"9,110.00",HIGH BARN CONSTRUCTION LIMITED,IMPROVEMENTS-EXTENSIONS & ALTERATIONS,PHYSICAL DIS & OLDER PEOPLE
Rochdale Borough Council,s1020050,26/02/2016,"95,000.00",COUNCIL FOR VOLUNTARY SERVICE ROCHDALE,SERVICE LEVEL AGREEMENTS,PHYSICAL DIS & OLDER PEOPLE
Rochdale Borough Council,x1012277,26/02/2016,"18,000.00",ADOPTION MATTERS NORTHWEST,ADOPTION PAYMENTS,CHILDREN�S SOCIAL CARE
Rochdale Borough Council,x1012278,26/02/2016,"18,000.00",BARNARDOS,ADOPTION PAYMENTS,CHILDREN�S SOCIAL CARE
Rochdale Borough Council,d1056552,29/02/2016,"7,956.60",DAVIS FRENCH ASSOCIATES LTD,PROPERTY - WORKS ELEMENT,NEIGHBOURHOODS AND ENVIRONMENT
Rochdale Borough Council,f1004533,29/02/2016,"6,580.00",NORTHGATE PUBLIC SERVICES (UK) LTD,SOFTWARE,FINANCE SERVICES
Rochdale Borough Council,d1056594,01/03/2016,"20,000.00",JEREMY BENN ASSOCIATES LTD,OTHER SURVEYS,NEIGHBOURHOODS AND ENVIRONMENT
Rochdale Borough Council,f1004536,01/03/2016,"7,268.00",BRIDGEALL LIBRARIES LTD,REFERENCE BOOKS/NEWSPAPERS/PERIODICALS,NEIGHBOURHOODS AND ENVIRONMENT
Rochdale Borough Council,ph101194,01/03/2016,"10,000.00",THE LIFE CHANNEL GROUP LIMITED,MARKETING EXPENDITURE,PUBLIC HEALTH
Rochdale Borough Council,q1006487,01/03/2016,"10,052.00",NORTHGATE PUBLIC SERVICES (UK) LTD,SOFTWARE,NEIGHBOURHOODS AND ENVIRONMENT
Rochdale Borough Council,s1020053,01/03/2016,"458,333.00",THE PENNINE ACUTE HOSPITALS NHS TRUST,CONTRACTS,BETTER CARE FUND POOLED BUDGET
Rochdale Borough Council,s1020054,01/03/2016,"458,333.00",THE PENNINE ACUTE HOSPITALS NHS TRUST,CONTRACTS,BETTER CARE FUND POOLED BUDGET
Rochdale Borough Council,d1056627,02/03/2016,"20,000.00",OLDHAM & ROCHDALE GROUNDWORK TRUST LTD,FEES -CONSTRUCTION CONVERSION RENOVATION,NEIGHBOURHOODS AND ENVIRONMENT
Rochdale Borough Council,d1056661,02/03/2016,"103,416.00",RECORD UK LTD,PROPERTY - WORKS ELEMENT,NEIGHBOURHOODS AND ENVIRONMENT
Rochdale Borough Council,e1020031,02/03/2016,"387,002.22",INSPIREDSPACES ROCHDALE PROJECTCO2 LTD,PFI SCHEMES RPIX,EARLY HELP AND SCHOOLS
Rochdale Borough Council,e1020032,02/03/2016,"323,695.60",INSPIREDSPACES ROCHDALE PROJECT CO1 LTD,PFI SCHEMES RPIX,EARLY HELP AND SCHOOLS
Rochdale Borough Council,e1020035,02/03/2016,"6,007.46",ROCHDALE SIXTH FORM COLLEGE,OTHER EST - SEN PROVISION,EARLY HELP AND SCHOOLS
Rochdale Borough Council,e1020036,02/03/2016,"6,007.46",ROCHDALE SIXTH FORM COLLEGE,OTHER EST - SEN PROVISION,EARLY HELP AND SCHOOLS
Rochdale Borough Council,e1020037,02/03/2016,"8,787.50",PSYCHOLOGY PEOPLE,BASIC SALARIES,EARLY HELP AND SCHOOLS
Rochdale Borough Council,e1020040,02/03/2016,"15,102.77",DIOCESE OF SALFORD,IMPROVEMENTS-MODERNISATION,EARLY HELP AND SCHOOLS
Rochdale Borough Council,x1012284,02/03/2016,"28,667.00",GLOUCESTERSHIRE COUNTY COUNCIL,ADOPTION PAYMENTS,CHILDREN�S SOCIAL CARE
Rochdale Borough Council,d1056675,03/03/2016,"5,139.00",MET OFFICE,TRAINING,PROPERTY AND HIGHWAYS
Rochdale Borough Council,d1056677,03/03/2016,"6,970.80",YOTTA LIMITED,CONSULTANT FEES,PROPERTY AND HIGHWAYS
Rochdale Borough Council,d1056696,03/03/2016,"8,030.00",ROCHDALE MEMORIAL SERVICE,FIXTURES & FITTINGS,NEIGHBOURHOODS AND ENVIRONMENT
Rochdale Borough Council,e1020055,03/03/2016,"174,502.73",INSPIREDSPACES ROCHDALE PROJECT CO1 LTD,IMPROVEMENTS-MODERNISATION,EARLY HELP AND SCHOOLS
Rochdale Borough Council,e1020056,03/03/2016,"193,679.90",INSPIREDSPACES ROCHDALE PROJECT CO1 LTD,IMPROVEMENTS-MODERNISATION,EARLY HELP AND SCHOOLS
Rochdale Borough Council,e1020061,03/03/2016,"5,030.00",ELKLAN TRAINING LTD,ACTIVITIES,EARLY HELP AND SCHOOLS
Rochdale Borough Council,f1004545,03/03/2016,"6,176.80",G4S CASH SOLUTIONS (UK) LIMITED,TRANSACTIONS-EXPENDITURE,EARLY HELP AND SCHOOLS
Rochdale Borough Council,ph101205,03/03/2016,"16,666.67",NORTH WEST AMBULANCE SERVICE NHS TRUST,PH BUSINESS CASES,PUBLIC HEALTH
Rochdale Borough Council,q1006511,03/03/2016,"5,701.60",ROCHDALE TOWN CENTRE MANAGEMENT CO,EVENTS,NEIGHBOURHOODS AND ENVIRONMENT
Rochdale Borough Council,q1006516,03/03/2016,"7,275.00",IDOX SOFTWARE LTD,SOFTWARE,NEIGHBOURHOODS AND ENVIRONMENT
Rochdale Borough Council,s1020066,03/03/2016,"46,500.00",PETRUS,SERVICE LEVEL AGREEMENTS,LEARNING DIS & MENTAL HEALTH
Rochdale Borough Council,x1012294,03/03/2016,"18,000.00",ADOPTION MATTERS NORTHWEST,ADOPTION PAYMENTS,CHILDREN�S SOCIAL CARE
Rochdale Borough Council,e1020082,04/03/2016,"11,408.57",SEASHELL TRUST,OTHER LA`S - SEN PROVISION,EARLY HELP AND SCHOOLS
Rochdale Borough Council,e1020083,04/03/2016,"11,480.57",SEASHELL TRUST,OTHER LA`S - SEN PROVISION,EARLY HELP AND SCHOOLS
Rochdale Borough Council,q1006524,04/03/2016,"22,213.32",XN LEISURE SYSTEMS LTD,SOFTWARE,NEIGHBOURHOODS AND ENVIRONMENT
Rochdale Borough Council,q1006533,04/03/2016,"25,000.00",MANCHESTER METROPOLITAN UNIVERSITY,ACTIVITIES,NEIGHBOURHOODS AND ENVIRONMENT
Rochdale Borough Council,q1006534,04/03/2016,"14,450.00",OPTEVIA LTD,PURCHASE OF ICT SOFTWARE,NEIGHBOURHOODS AND ENVIRONMENT
Rochdale Borough Council,s1020071,04/03/2016,"5,077.00",K P DODD CONSTRUCTION LIMITED,TRANSACTIONS-EXPENDITURE,PHYSICAL DIS & OLDER PEOPLE
Rochdale Borough Council,d1056719,07/03/2016,"76,250.00",STOCKPORT MBC,ACTIVITIES,ECONOMY DIRECTORATE
Rochdale Borough Council,d1056726,07/03/2016,"33,889.00",WICKSTEED LEISURE LIMITED,PURCHASE OF OTHER EQUIPMENT,NEIGHBOURHOODS AND ENVIRONMENT
Rochdale Borough Council,d1056730,07/03/2016,"24,212.00",M N PROPERTY CONSULTANTS,INSURANCE,NEIGHBOURHOODS AND ENVIRONMENT
Rochdale Borough Council,d1056732,07/03/2016,"28,719.00",WICKSTEED LEISURE LIMITED,PURCHASE OF OTHER EQUIPMENT,NEIGHBOURHOODS AND ENVIRONMENT
Rochdale Borough Council,d1056752,07/03/2016,"10,243.28",BURNT TREE GROUP,TRANSACTIONS-EXPENDITURE,NEIGHBOURHOODS AND ENVIRONMENT
Rochdale Borough Council,d1056761,07/03/2016,"8,311.54",PHS GROUP PLC,HYGIENE EQUIPMENT,NEIGHBOURHOODS AND ENVIRONMENT
Rochdale Borough Council,e1020097,07/03/2016,"6,999.93",ROC NORTHWEST LTD,OTHER LA`S - SEN PROVISION,EARLY HELP AND SCHOOLS
Rochdale Borough Council,ph101209,07/03/2016,"268,556.00",VIRGIN CARE SERVICES LIMITED,PH PENNINE CARE CONTRACT,PUBLIC HEALTH
Rochdale Borough Council,q1006546,07/03/2016,"41,391.20",SPECIALIST COMPUTER CENTRES PLC,PURCHASE OF ICT HARDWARE,NEIGHBOURHOODS AND ENVIRONMENT
Rochdale Borough Council,d1056765,08/03/2016,"12,762.81",ASPINALL INTERIORS,IMPROVEMENTS-MODERNISATION,ECONOMY DIRECTORATE
Rochdale Borough Council,d1056783,08/03/2016,"9,000.00",PAC TRAINING,ACTIVITIES,ECONOMY DIRECTORATE
Rochdale Borough Council,d1056789,08/03/2016,"5,840.00",ROCHDALE MEMORIAL SERVICE,FIXTURES & FITTINGS,NEIGHBOURHOODS AND ENVIRONMENT
Rochdale Borough Council,d1056806,08/03/2016,"6,117.90",R S G (ROCHDALE) LIMITED,TRANSACTIONS-EXPENDITURE,NEIGHBOURHOODS AND ENVIRONMENT
Rochdale Borough Council,d1056806,08/03/2016,"6,117.90",R S G (ROCHDALE) LIMITED,TRANSACTIONS-EXPENDITURE,NEIGHBOURHOODS AND ENVIRONMENT
Rochdale Borough Council,q1006552,08/03/2016,"7,382.00",SOFTCAT LTD,SOFTWARE,NEIGHBOURHOODS AND ENVIRONMENT
Rochdale Borough Council,q1006553,08/03/2016,"10,000.00",TEAM NETSOL LTD,PURCHASE OF ICT SOFTWARE,NEIGHBOURHOODS AND ENVIRONMENT
Rochdale Borough Council,q1006556,08/03/2016,"7,162.40",TRAFFORD MBC,ADVERTISING -STAFF,FINANCE SERVICES
Rochdale Borough Council,q1006557,08/03/2016,"40,045.00",MIDLAND SOFTWARE LTD,SOFTWARE,FINANCE SERVICES
Rochdale Borough Council,q1006559,08/03/2016,"10,000.00",ACCESS INTELLIGENCE MEDIA AND COMM LTD,PUBLICITY,NEIGHBOURHOODS AND ENVIRONMENT
Rochdale Borough Council,x1012297,08/03/2016,"18,000.00",CARITAS CARE LTD,ADOPTION PAYMENTS,CHILDREN�S SOCIAL CARE
Rochdale Borough Council,d1056818,09/03/2016,"35,663.00",SALFORD CITY COUNCIL,AGMA,ECONOMY DIRECTORATE
Rochdale Borough Council,d1056838,09/03/2016,"25,000.00",A E YATES LTD,MAINTENANCE,PROPERTY AND HIGHWAYS
Rochdale Borough Council,e1020111,09/03/2016,"11,600.00",BEVAN BRITTAN LLP,CONSULTANTS FEES,EARLY HELP AND SCHOOLS
Rochdale Borough Council,e1020115,09/03/2016,"22,719.28",AXIOM EDUCATION (ROCHDALE) LIMITED,MEALS,EARLY HELP AND SCHOOLS
Rochdale Borough Council,e1020121,09/03/2016,"655,830.49",AXIOM EDUCATION (ROCHDALE) LIMITED,PFI SCHEMES RPIX,EARLY HELP AND SCHOOLS
Rochdale Borough Council,e1020122,09/03/2016,"104,141.00",AXIOM EDUCATION (ROCHDALE) LIMITED,"DEV CAP - NEW CONSTRUCTION,CONVERSION",EARLY HELP AND SCHOOLS
Rochdale Borough Council,e1020124,09/03/2016,"19,894.00",PENNINE CARE NHS,TEACHERS - BASIC,EARLY HELP AND SCHOOLS
Rochdale Borough Council,e1020126,09/03/2016,"13,193.00",LANCASHIRE COUNTY COUNCIL,OTHER EST - SEN PROVISION,EARLY HELP AND SCHOOLS
Rochdale Borough Council,q1006566,09/03/2016,"5,100.00",SOCIAL CARE NETWORK SOLUTIONS LTD,TRAINING,PHYSICAL DIS & OLDER PEOPLE
Rochdale Borough Council,s1020098,09/03/2016,"16,581.33",NHS HEYWOOD MIDDLETON AND ROCHDALE CCG,CONTRACTS,BETTER CARE FUND POOLED BUDGET
Rochdale Borough Council,d1056870,10/03/2016,"7,000.00",LINK4LIFE (CHARITY),TRAINING-QUALIFICATION,ECONOMY DIRECTORATE
Rochdale Borough Council,d1056882,10/03/2016,"19,995.00",AECOM INFRASTRUCTURE AND ENVIRONMENT UK LTD,SURVEYORS FEES,NEIGHBOURHOODS AND ENVIRONMENT
Rochdale Borough Council,d1056890,10/03/2016,"9,527.78",BURNT TREE GROUP,TRANSACTIONS-EXPENDITURE,NEIGHBOURHOODS AND ENVIRONMENT
Rochdale Borough Council,d1056891,10/03/2016,"7,852.98",NORTHGATE VEHICLE HIRE LIMITED,TRANSACTIONS-EXPENDITURE,NEIGHBOURHOODS AND ENVIRONMENT
Rochdale Borough Council,d1056893,10/03/2016,"5,000.00",A E YATES LTD,MAINTENANCE,PROPERTY AND HIGHWAYS
Rochdale Borough Council,q1006572,10/03/2016,"11,040.00",TURNING POINT SERVICES LIMITED,CONTRACTED SERVICES,NEIGHBOURHOODS AND ENVIRONMENT
Rochdale Borough Council,q1006575,10/03/2016,"25,862.00",ME LEARNING LIMITED,SUBSCRIPTIONS,FINANCE SERVICES
Rochdale Borough Council,q1006577,10/03/2016,"5,155.00",SOCIAL CARE NETWORK SOLUTIONS LTD,TRAINING,PHYSICAL DIS & OLDER PEOPLE
Rochdale Borough Council,q1006586,10/03/2016,"155,000.00",UPDATA INFRASTRUCTURE UK LTD,COMMUNICATION AND COMPUTING - GENERAL,NEIGHBOURHOODS AND ENVIRONMENT
Rochdale Borough Council,q1006587,10/03/2016,"42,714.00",UPDATA INFRASTRUCTURE UK LTD,COMMUNICATION AND COMPUTING - GENERAL,NEIGHBOURHOODS AND ENVIRONMENT
Rochdale Borough Council,q1006588,10/03/2016,"6,600.00",UPDATA INFRASTRUCTURE UK LTD,COMMUNICATION AND COMPUTING - GENERAL,NEIGHBOURHOODS AND ENVIRONMENT
Rochdale Borough Council,s1020100,10/03/2016,"7,497.00",PENNINE CARE NHS,SERVICE LEVEL AGREEMENTS,PHYSICAL DIS & OLDER PEOPLE
Rochdale Borough Council,x1012310,10/03/2016,"12,565.00",BOLTON MBC,ADVERTISING,CHILDREN�S SOCIAL CARE
Rochdale Borough Council,d1056900,11/03/2016,"45,971.52",KABERRY CONSTRUCTION LIMITED,MAINTENANCE,PROPERTY AND HIGHWAYS
Rochdale Borough Council,q1006595,11/03/2016,"14,360.00",FISCHER EDUCATION PROJECT LTD,SOFTWARE,NEIGHBOURHOODS AND ENVIRONMENT
Rochdale Borough Council,q1006602,11/03/2016,"23,100.00",XMA LIMITED,PURCHASE OF ICT HARDWARE,NEIGHBOURHOODS AND ENVIRONMENT
Rochdale Borough Council,s1020117,11/03/2016,"26,632.73",K P DODD CONSTRUCTION LIMITED,IMPROVEMENTS-EXTENSIONS & ALTERATIONS,PHYSICAL DIS & OLDER PEOPLE
Rochdale Borough Council,s1020123,11/03/2016,"5,181.00",STANNAH LIFT SERVICES LTD,IMPROVEMENTS-EXTENSIONS & ALTERATIONS,PHYSICAL DIS & OLDER PEOPLE
Rochdale Borough Council,s1020126,11/03/2016,"7,725.00",NEWLINE ADAPTATIONS LTD,IMPROVEMENTS-EXTENSIONS & ALTERATIONS,PHYSICAL DIS & OLDER PEOPLE
Rochdale Borough Council,d1056923,14/03/2016,"137,641.93",CANAL & RIVER TRUST,ROCHDALE CANAL MAINTENANCE,ECONOMY DIRECTORATE
Rochdale Borough Council,d1056924,14/03/2016,"137,641.93",CANAL & RIVER TRUST,ROCHDALE CANAL MAINTENANCE,ECONOMY DIRECTORATE
Rochdale Borough Council,d1056951,14/03/2016,"7,779.20",TEACRATE PLC,PROPERTY - WORKS ELEMENT,NEIGHBOURHOODS AND ENVIRONMENT
Rochdale Borough Council,e1020177,14/03/2016,"10,385.21",SPORT WORKS,ACTIVITIES,EARLY HELP AND SCHOOLS
Rochdale Borough Council,e1020178,14/03/2016,"18,314.20",ROSS CARE,EQUIPMENT - GENERAL,EARLY HELP AND SCHOOLS
Rochdale Borough Council,s1020129,14/03/2016,"7,750.00",COUNCIL FOR VOLUNTARY SERVICE ROCHDALE,VOLUNTARY ASSOCIATIONS,PHYSICAL DIS & OLDER PEOPLE
Rochdale Borough Council,s1020130,14/03/2016,"15,680.00",COUNCIL FOR VOLUNTARY SERVICE ROCHDALE,VOLUNTARY ASSOCIATIONS,PHYSICAL DIS & OLDER PEOPLE
Rochdale Borough Council,d1056978,15/03/2016,"318,348.74",VBA JOINT VENTURE LTD,NEW CONSTRUCTION,ECONOMY DIRECTORATE
Rochdale Borough Council,d1057003,15/03/2016,"5,520.00",ENCOME ENERGY PERFORMANCE UK LTT,PURCHASE OF PLANT AND MACHINERY,ECONOMY DIRECTORATE
Rochdale Borough Council,e1020208,15/03/2016,"381,662.99",INSPIREDSPACES ROCHDALE PROJECT CO1 LTD,IMPROVEMENTS-MODERNISATION,EARLY HELP AND SCHOOLS
Rochdale Borough Council,f1004567,15/03/2016,"50,000.00",CAPITA BUSINESS SERVICES LIMITED,SOFTWARE,FINANCE SERVICES
Rochdale Borough Council,f1004568,15/03/2016,"15,823.43",CAPITA BUSINESS SERVICES LIMITED,SOFTWARE,FINANCE SERVICES
Rochdale Borough Council,q1006622,15/03/2016,"51,660.00",UPDATA INFRASTRUCTURE UK LTD,COMMUNICATION AND COMPUTING - GENERAL,NEIGHBOURHOODS AND ENVIRONMENT
Rochdale Borough Council,s1020141,15/03/2016,"458,333.00",THE PENNINE ACUTE HOSPITALS NHS TRUST,CONTRACTS,BETTER CARE FUND POOLED BUDGET
Rochdale Borough Council,d1057023,16/03/2016,"9,950.00",ISAAC BUTTERWORTH (IRONFOUNDERS) LIMITED,EQUIPMENT - GENERAL,NEIGHBOURHOODS AND ENVIRONMENT
Rochdale Borough Council,d1057029,16/03/2016,"10,260.00",MAYER EXCAVATION AND  SKIP HIRE LIMITED,EQUIPMENT - GENERAL,NEIGHBOURHOODS AND ENVIRONMENT
Rochdale Borough Council,f1004571,16/03/2016,"23,107.50",MERITEC LIMITED,AGENCY STAFF,FINANCE SERVICES
Rochdale Borough Council,f1004572,16/03/2016,"20,000.00",TEAM NETSOL LTD,SOFTWARE,FINANCE SERVICES
Rochdale Borough Council,f1004573,16/03/2016,"6,446.60",HERMAN MILLER LTD,EQUIPMENT - GENERAL,NEIGHBOURHOODS AND ENVIRONMENT
Rochdale Borough Council,q1006632,16/03/2016,"56,882.00",CAPITA BUSINESS SERVICES LIMITED,SOFTWARE,NEIGHBOURHOODS AND ENVIRONMENT
Rochdale Borough Council,q1006633,16/03/2016,"8,757.32",CDEC LIMITED,PURCHASE OF ICT HARDWARE,NEIGHBOURHOODS AND ENVIRONMENT
Rochdale Borough Council,q1006634,16/03/2016,"5,950.00",EDENHOUSE SOLUTIONS LTD,SOFTWARE,NEIGHBOURHOODS AND ENVIRONMENT
Rochdale Borough Council,q1006635,16/03/2016,"14,340.88",IHS (GLOBAL)LTD,SOFTWARE,NEIGHBOURHOODS AND ENVIRONMENT
Rochdale Borough Council,q1006636,16/03/2016,"9,321.00",EXPERIAN LIMITED,ACTIVITIES,NEIGHBOURHOODS AND ENVIRONMENT
Rochdale Borough Council,d1057049,17/03/2016,"27,500.00",OLDHAM & ROCHDALE GROUNDWORK TRUST LTD,OTHER SURVEYS,NEIGHBOURHOODS AND ENVIRONMENT
Rochdale Borough Council,d1057052,17/03/2016,"75,738.87",ENVIRONMENT AGENCY,ENGINEERS FEES,ECONOMY DIRECTORATE
Rochdale Borough Council,d1057053,17/03/2016,"8,285.00",MARCHBRIDGE BUILDERS LIMITED,IMPROVEMENTS-MODERNISATION,PROPERTY AND HIGHWAYS
Rochdale Borough Council,d1057054,17/03/2016,"6,650.00",TOMAX BUILDING SERVICES LTD,TRANSACTIONS-EXPENDITURE,PROPERTY AND HIGHWAYS
Rochdale Borough Council,d1057059,17/03/2016,"11,250.00",BROXAP LIMITED,EQUIPMENT - GENERAL,NEIGHBOURHOODS AND ENVIRONMENT
Rochdale Borough Council,d1057060,17/03/2016,"10,125.00",MRM STREET FURNITURE LTD,EQUIPMENT - GENERAL,NEIGHBOURHOODS AND ENVIRONMENT
Rochdale Borough Council,e1020232,17/03/2016,"10,681.00",TAMESIDE METROPOLITAN BOROUGH COUNCIL,OTHER EST - SEN PROVISION,EARLY HELP AND SCHOOLS
Rochdale Borough Council,s1020148,17/03/2016,"33,346.00",MENCAP,SUPPORTED LIVING,LEARNING DIS & MENTAL HEALTH
Rochdale Borough Council,x1012328,17/03/2016,"6,900.00",BOLTON MBC,ADVERTISING,CHILDREN�S SOCIAL CARE
Rochdale Borough Council,d1057071,18/03/2016,"9,000.00",PIPER MUSIC MANAGEMENT LTD,EVENTS,ECONOMY DIRECTORATE
Rochdale Borough Council,d1057086,18/03/2016,"36,416.00",TRANSPORT FOR GREATER MANCHESTER,BUS EXPENSES,ECONOMY DIRECTORATE
Rochdale Borough Council,d1057088,18/03/2016,"14,125.00",DOBSON UK LTD,EQUIPMENT - GENERAL,NEIGHBOURHOODS AND ENVIRONMENT
Rochdale Borough Council,e1020247,18/03/2016,"57,671.00",HOPWOOD HALL COLLEGE,OTHER EST - SEN PROVISION,EARLY HELP AND SCHOOLS
Rochdale Borough Council,e1020248,18/03/2016,"57,671.00",HOPWOOD HALL COLLEGE,OTHER EST - SEN PROVISION,EARLY HELP AND SCHOOLS
Rochdale Borough Council,q1006649,18/03/2016,"9,995.00",THE CHILDRENS SOCIETY SERVICES LTD,ACTIVITIES,NEIGHBOURHOODS AND ENVIRONMENT
Rochdale Borough Council,q1006652,18/03/2016,"47,087.00",PROCESSFLOWS UK LTD,SOFTWARE,NEIGHBOURHOODS AND ENVIRONMENT
Rochdale Borough Council,q1006658,18/03/2016,"5,248.92",NATIONAL CONSORTIUM FOR EXAMINATION RESULTS,SOFTWARE,NEIGHBOURHOODS AND ENVIRONMENT
Rochdale Borough Council,q1006659,18/03/2016,"7,010.00",MODERN MINDSET LTD,SOFTWARE,NEIGHBOURHOODS AND ENVIRONMENT
Rochdale Borough Council,q1006660,18/03/2016,"9,745.00",GRAITEC LIMITED,SOFTWARE,NEIGHBOURHOODS AND ENVIRONMENT
Rochdale Borough Council,q1006662,18/03/2016,"106,572.52",CAPITA BUSINESS SERVICES LIMITED,SOFTWARE,NEIGHBOURHOODS AND ENVIRONMENT
Rochdale Borough Council,q1006663,18/03/2016,"15,750.00",OPEN OBJECTS SOFTWARE LTD,SOFTWARE,NEIGHBOURHOODS AND ENVIRONMENT
Rochdale Borough Council,q1006664,18/03/2016,"37,800.00",PHOENIX SOFTWARE LIMITED,SOFTWARE,NEIGHBOURHOODS AND ENVIRONMENT
Rochdale Borough Council,d1057117,21/03/2016,"46,297.84",CARIBOU GREEN WARMTH LLP,PROPERTY REFURBISHMENT (HOUSING),NEIGHBOURHOODS AND ENVIRONMENT
Rochdale Borough Council,d1057119,21/03/2016,"61,024.36",CARIBOU GREEN WARMTH LLP,PROPERTY REFURBISHMENT (HOUSING),NEIGHBOURHOODS AND ENVIRONMENT
Rochdale Borough Council,d1057120,21/03/2016,"33,181.19",CARIBOU GREEN WARMTH LLP,PROPERTY REFURBISHMENT (HOUSING),NEIGHBOURHOODS AND ENVIRONMENT
Rochdale Borough Council,d1057124,21/03/2016,"31,706.21",OLDHAM & ROCHDALE GROUNDWORK TRUST LTD,FEES -CONSTRUCTION CONVERSION RENOVATION,NEIGHBOURHOODS AND ENVIRONMENT
Rochdale Borough Council,d1057125,21/03/2016,"23,293.79",OLDHAM & ROCHDALE GROUNDWORK TRUST LTD,OTHER SURVEYS,NEIGHBOURHOODS AND ENVIRONMENT
Rochdale Borough Council,d1057126,21/03/2016,"40,200.00",PETRUS,GRANTS TO THE VOLUNTARY SECTOR,NEIGHBOURHOODS AND ENVIRONMENT
Rochdale Borough Council,e1020260,21/03/2016,"5,863.18",PENNINE CARE NHS,HEALTH AUTH - SERVICE LEVEL AGREEMENT,EARLY HELP AND SCHOOLS
Rochdale Borough Council,q1006671,21/03/2016,"42,058.17",CIVICA UK LIMITED,SOFTWARE,NEIGHBOURHOODS AND ENVIRONMENT
Rochdale Borough Council,s1020159,21/03/2016,"156,068.00",HEALTHWATCH ROCHDALE,SERVICE LEVEL AGREEMENTS,PHYSICAL DIS & OLDER PEOPLE
Rochdale Borough Council,d1057130,22/03/2016,"5,668.50",F W SHERRATT LTD,MAINTENANCE,PROPERTY AND HIGHWAYS
Rochdale Borough Council,d1057131,22/03/2016,"8,500.00",F W SHERRATT LTD,MAINTENANCE,PROPERTY AND HIGHWAYS
Rochdale Borough Council,d1057133,22/03/2016,"20,000.00",PETRUS,ACTIVITIES,NEIGHBOURHOODS AND ENVIRONMENT
Rochdale Borough Council,d1057153,22/03/2016,"14,254.70",DOBSON UK LTD,EQUIPMENT - GENERAL,NEIGHBOURHOODS AND ENVIRONMENT
Rochdale Borough Council,d1057172,22/03/2016,"11,250.00",BROXAP LIMITED,EQUIPMENT - GENERAL,NEIGHBOURHOODS AND ENVIRONMENT
Rochdale Borough Council,d1057175,22/03/2016,"355,105.22",COMMUNITY LIGHTING PARTNERSHIP ROCHDALE LTD,PFI SCHEMES RPIX,PROPERTY AND HIGHWAYS
Rochdale Borough Council,e1020273,22/03/2016,"9,928.66",TRAFFORD MBC,OTHER EST - SEN PROVISION,EARLY HELP AND SCHOOLS
Rochdale Borough Council,q1006676,22/03/2016,"6,400.00",STHREE PARTNERSHIP LLP,CAPITAL SALARIES,NEIGHBOURHOODS AND ENVIRONMENT
Rochdale Borough Council,q1006677,22/03/2016,"6,420.00",STHREE PARTNERSHIP LLP,CAPITAL SALARIES,NEIGHBOURHOODS AND ENVIRONMENT
Rochdale Borough Council,w1001313,22/03/2016,"36,733.25",NHS HEYWOOD MIDDLETON AND ROCHDALE CCG,CONTRACTS,BETTER CARE FUND POOLED BUDGET
Rochdale Borough Council,d1057194,23/03/2016,"12,500.00",THE BOND BOARD LIMITED,ACTIVITIES,NEIGHBOURHOODS AND ENVIRONMENT
Rochdale Borough Council,d1057199,23/03/2016,"5,500.00",BRENTWOOD,GRANTS TO THE VOLUNTARY SECTOR,NEIGHBOURHOODS AND ENVIRONMENT
Rochdale Borough Council,d1057201,23/03/2016,"10,000.00",ROCHDALE HOUSING INITIATIVE,FEES -CONSTRUCTION CONVERSION RENOVATION,NEIGHBOURHOODS AND ENVIRONMENT
Rochdale Borough Council,d1057202,23/03/2016,"107,764.38",ROCHDALE HOUSING INITIATIVE,FEES -CONSTRUCTION CONVERSION RENOVATION,NEIGHBOURHOODS AND ENVIRONMENT
Rochdale Borough Council,d1057204,23/03/2016,"10,456.00",NO GRAFFITI LTD,CONTRACTED SERVICES,NEIGHBOURHOODS AND ENVIRONMENT
Rochdale Borough Council,d1057210,23/03/2016,"5,000.00",A E YATES LTD,MAINTENANCE,PROPERTY AND HIGHWAYS
Rochdale Borough Council,d1057224,23/03/2016,"9,400.00",NSL LIMITED,MAINTENANCE,PROPERTY AND HIGHWAYS
Rochdale Borough Council,d1057232,23/03/2016,"50,000.00",A E YATES LTD,MAINTENANCE,PROPERTY AND HIGHWAYS
Rochdale Borough Council,d1057233,23/03/2016,"126,820.80",CARIBOU GREEN WARMTH LLP,PROPERTY REFURBISHMENT (HOUSING),NEIGHBOURHOODS AND ENVIRONMENT
Rochdale Borough Council,d1057234,23/03/2016,"126,820.80",CARIBOU GREEN WARMTH LLP,PROPERTY REFURBISHMENT (HOUSING),NEIGHBOURHOODS AND ENVIRONMENT
Rochdale Borough Council,d1057236,23/03/2016,"7,400.00",NO GRAFFITI LTD,CONTRACTED SERVICES,NEIGHBOURHOODS AND ENVIRONMENT
Rochdale Borough Council,q1006689,23/03/2016,"24,516.61",CIVICA UK LIMITED,SOFTWARE,NEIGHBOURHOODS AND ENVIRONMENT
Rochdale Borough Council,q1006690,23/03/2016,"22,139.67",CIVICA UK LIMITED,SOFTWARE,NEIGHBOURHOODS AND ENVIRONMENT
Rochdale Borough Council,s1020174,23/03/2016,"7,500.00",ELDERCARE UK LTD,EQUIPMENT - GENERAL,PHYSICAL DIS & OLDER PEOPLE
Rochdale Borough Council,w1001314,23/03/2016,"22,770.71",NHS HEYWOOD MIDDLETON AND ROCHDALE CCG,CONTRACTS,BETTER CARE FUND POOLED BUDGET
Rochdale Borough Council,w1001315,23/03/2016,"16,587.34",NHS HEYWOOD MIDDLETON AND ROCHDALE CCG,CONTRACTS,BETTER CARE FUND POOLED BUDGET
Rochdale Borough Council,w1001316,23/03/2016,"24,500.00",NHS HEYWOOD MIDDLETON AND ROCHDALE CCG,CONTRACTS,BETTER CARE FUND POOLED BUDGET
Rochdale Borough Council,w1001319,23/03/2016,"16,581.33",NHS HEYWOOD MIDDLETON AND ROCHDALE CCG,CONTRACTS,BETTER CARE FUND POOLED BUDGET
Rochdale Borough Council,w1001320,23/03/2016,"36,733.25",NHS HEYWOOD MIDDLETON AND ROCHDALE CCG,CONTRACTS,BETTER CARE FUND POOLED BUDGET
Rochdale Borough Council,d1057247,24/03/2016,"5,000.00",NORDEN AGRICULTURAL CONTRACTORS,EQUIPMENT - GENERAL,NEIGHBOURHOODS AND ENVIRONMENT
Rochdale Borough Council,d1057253,24/03/2016,"35,950.00",CREATIVE  AND CULTURAL INDUSTRIES LTD.,ACTIVITIES,ECONOMY DIRECTORATE
Rochdale Borough Council,e1020320,24/03/2016,"7,000.00",ROCHDALE CONNECTION TRUST,TRAINING,EARLY HELP AND SCHOOLS
Rochdale Borough Council,q1006700,24/03/2016,"18,275.75",CAPITA IT SERVICES LIMITED,SOFTWARE,NEIGHBOURHOODS AND ENVIRONMENT
Rochdale Borough Council,q1006706,24/03/2016,"6,000.00",CAPITA CHILDREN`S SERVICES,SOFTWARE,NEIGHBOURHOODS AND ENVIRONMENT
Rochdale Borough Council,q1006707,24/03/2016,"48,250.00",LIQUIDLOGIC LTD,PURCHASE OF ICT SOFTWARE,PHYSICAL DIS & OLDER PEOPLE
Rochdale Borough Council,q1006708,24/03/2016,"10,500.00",MIDLAND SOFTWARE LTD,SOFTWARE,NEIGHBOURHOODS AND ENVIRONMENT
Rochdale Borough Council,q1006711,24/03/2016,"76,229.00",MIDLAND SOFTWARE LTD,SOFTWARE,NEIGHBOURHOODS AND ENVIRONMENT
Rochdale Borough Council,s1020179,24/03/2016,"28,000.00",ROSS CARE,SERVICE LEVEL AGREEMENTS,PHYSICAL DIS & OLDER PEOPLE
Rochdale Borough Council,s1020183,24/03/2016,"33,436.00",MENCAP,SUPPORTED LIVING,LEARNING DIS & MENTAL HEALTH
Rochdale Borough Council,w1001321,24/03/2016,"56,955.24",ROSS CARE,OTHER AGENCIES,BETTER CARE FUND POOLED BUDGET
Rochdale Borough Council,w1001322,24/03/2016,"54,601.61",ROSS CARE,OTHER AGENCIES,BETTER CARE FUND POOLED BUDGET
Rochdale Borough Council,w1001323,24/03/2016,"51,374.61",ROSS CARE,OTHER AGENCIES,BETTER CARE FUND POOLED BUDGET
Rochdale Borough Council,w1001324,24/03/2016,"50,242.86",ROSS CARE,OTHER AGENCIES,BETTER CARE FUND POOLED BUDGET
Rochdale Borough Council,x1012362,24/03/2016,"5,487.00",YOUTH JUSTICE BOARD,SERVICE LEVEL AGREEMENTS,CHILDREN�S SOCIAL CARE
Rochdale Borough Council,x1012364,24/03/2016,"9,940.00",YOUTH JUSTICE BOARD,SERVICE LEVEL AGREEMENTS,CHILDREN�S SOCIAL CARE
Rochdale Borough Council,d1057264,29/03/2016,"5,000.00",A E YATES LTD,MAINTENANCE,PROPERTY AND HIGHWAYS
Rochdale Borough Council,e1020335,29/03/2016,"5,176.00",CREATIVE CARE LTD.,HOME CARE - CHILDRENS SERVICES,EARLY HELP AND SCHOOLS
Rochdale Borough Council,ph101253,29/03/2016,"50,000.00",BIG LIFE CENTRES,PH BIG LIFE CONTRACT,PUBLIC HEALTH
Rochdale Borough Council,s1020188,29/03/2016,"34,779.60",FACE RECORDING & MEASUREMENT SYSTEMS LTD,IT MAINTENANCE,LEARNING DIS & MENTAL HEALTH
Rochdale Borough Council,s1020189,29/03/2016,"9,498.00",FACE RECORDING & MEASUREMENT SYSTEMS LTD,IT MAINTENANCE,LEARNING DIS & MENTAL HEALTH
Rochdale Borough Council,x1012366,29/03/2016,"33,332.00",CAREERVISION LTD,SOFTWARE,CHILDREN�S SOCIAL CARE
Rochdale Borough Council,d1057305,30/03/2016,"44,506.00",OLDHAM & ROCHDALE GROUNDWORK TRUST LTD,PROPERTY REFURBISHMENT (HOUSING),NEIGHBOURHOODS AND ENVIRONMENT
Rochdale Borough Council,d1057351,30/03/2016,"7,838.49",SAFEGARD SECURITY SOLUTIONS,REPAIRS & ALTS OF BUILDINGS,ECONOMY DIRECTORATE
Rochdale Borough Council,d1057355,30/03/2016,"8,030.00",ROCHDALE MEMORIAL SERVICE,FIXTURES & FITTINGS,NEIGHBOURHOODS AND ENVIRONMENT
Rochdale Borough Council,e1020342,30/03/2016,"5,700.00",PSYCHOLOGY PEOPLE,BASIC SALARIES,EARLY HELP AND SCHOOLS
Rochdale Borough Council,f1004590,30/03/2016,"11,975.68",CIVICA UK LIMITED,AGENCY STAFF,FINANCE SERVICES
Rochdale Borough Council,f1004592,30/03/2016,"14,000.00",PRICE WATERHOUSE COOPERS,ADVICE/SUPPORT,FINANCE SERVICES
Rochdale Borough Council,ph101260,30/03/2016,"604,030.00",NHS HEYWOOD MIDDLETON AND ROCHDALE CCG,PH PENNINE ACUTE CONTRACT,PUBLIC HEALTH
Rochdale Borough Council,q1006725,30/03/2016,"7,808.00",BINDMONT PRINT SERVICES LTD,PRINTING & STATIONERY,FINANCE SERVICES
Rochdale Borough Council,d1057379,31/03/2016,"83,405.00",D HUGHES DEMOLITION,DEMOLITION AND CLEARANCE,NEIGHBOURHOODS AND ENVIRONMENT
Rochdale Borough Council,d1057382,31/03/2016,"31,928.70",CLYDE & CO,LEGAL SERVICES EXTERNAL,ECONOMY DIRECTORATE
Rochdale Borough Council,d1057385,31/03/2016,"7,133.00",ABM LANCASHIRE LIMITED,IMPROVEMENTS-MODERNISATION,PROPERTY AND HIGHWAYS
Rochdale Borough Council,e1020343,31/03/2016,"12,572.98",OLDHAM COLLEGE,OTHER EST - SEN PROVISION,EARLY HELP AND SCHOOLS
Rochdale Borough Council,e1020345,31/03/2016,"13,968.98",OLDHAM COLLEGE,OTHER EST - SEN PROVISION,EARLY HELP AND SCHOOLS
Rochdale Borough Council,e1020353,31/03/2016,"57,671.00",HOPWOOD HALL COLLEGE,OTHER EST - SEN PROVISION,EARLY HELP AND SCHOOLS
Rochdale Borough Council,q1006741,31/03/2016,"5,727.04",BINDMONT PRINT SERVICES LTD,PRINTING & STATIONERY,FINANCE SERVICES
